Cogmind - Beta 12 @@@ ROGUE MODE // 2023.09.12 @ 19:21:41 Player: DuckBoy Result: Destroyed by H-71 Marshal with Heavy Mass Driver Performance ------------- Evolutions (5) 2500 Regions Visited (15) 3000 Robots Destroyed (193) 965 Value Destroyed (10856) 10856 Prototype IDs (27) 540 Alien Tech Used (0) 0 Bonus (6490) 6490 TOTAL SCORE: 24351 Bonus ------- High Alert Combat Kills 1444 Follower Combat Kills 1315 Entered Garrisons 1000 Used RIF Installer 2500 Aligned with FarCom 300 Friendly Fire -69 Cogmind --------- Core Integrity 0/1000 Matter 48/300 Energy 98/100 System Corruption 3% Temperature Cool (0) Movement Core (50) Location -5/Factory Parts ------- > --- POWER (2) -------- (None) > --- PROPULSION (3) --- (None) > --- UTILITY (9) ------ Relay Coupler [NC] (30) > --- WEAPON (3) ------- (None) > --- INVENTORY (5) ---- Carbon-fiber Leg Smartbomb Launcher Great Axe Peak State ------------ > --- POWER ------------ Light Nuclear Core Light Antimatter Reactor > --- PROPULSION ------- Carbon-fiber Leg Myomer Leg Biometal Leg > --- UTILITY ---------- Improved Cooling System Large Storage Unit Powered Armor Powered Armor Powered Armor Relay Coupler [NC] Relay Coupler [Grunt] Relay Coupler [Sentry] Relay Coupler [Hunter] > --- WEAPON ----------- Smartbomb Launcher Great Axe > --- INVENTORY -------- Carbon-fiber Leg Carbon-fiber Leg Improved Heat Sink Improved Cooling System Relay Coupler [Grunt] Relay Coupler [Hunter] Relay Coupler [Heavy] Shock Rifle Hypervelocity Coil Gun Hypervelocity Coil Gun Hypervelocity Coil Gun Datajack [Rating: 78] Favorites ----------- Power Light Nuclear Core Engine Reinforced Ion Engine Power Core Light Nuclear Core Reactor Light Antimatter Reactor Propulsion Improved Titanium Leg Treads Light Treads Leg Improved Titanium Leg Hover Unit Improved Hover Unit Utility Large Storage Unit Device Improved Cooling System Storage Large Storage Unit Processor Corruption Screen Hackware Advanced Hacking Suite Protection Powered Armor Weapon Lightning Gun Energy Gun Lightning Gun Ballistic Gun Hypervelocity Coil Gun Ballistic Cannon Advanced Assault Cannon Launcher Smartbomb Launcher Impact Weapon Great Maul Slashing Weapon Great Axe Special Melee Weapon Datajack Build | -11 -10 -10 -10 -9 -8 -8 -8 -8 -7 -7 -7 -7 -6 -6 -5 ------- Run | Jun Mat Min Exi Min Mat Gar Mat Gar Fac Gar Fac Gar Fac Gar Fac Slots Evolved 10 | . . . . . 4 . . . 2 . . . 2 . 2 Power 1 | . . . . . 1 . . . . . . . . . . Propulsion 1 | . . . . . 1 . . . . . . . . . . Utility 7 | . . . . . 1 . . . 2 . . . 2 . 2 Weapon 1 | . . . . . 1 . . . . . . . . . . Parts Attached 203 | 3 13 1 2 9 25 2 4 14 13 11 50 27 2 12 15 Power 24 | 1 1 . 1 2 2 . 1 1 1 6 3 5 . . . Engine 11 | 1 1 . 1 2 2 . 1 . 1 . 1 1 . . . Core 9 | . . . . . . . . 1 . 3 2 3 . . . Reactor 4 | . . . . . . . . . . 3 . 1 . . . Propulsion 30 | 2 4 . . 1 3 1 1 . 1 4 5 5 . 2 1 Treads 3 | 2 1 . . . . . . . . . . . . . . Leg 23 | . . . . . 3 1 1 . 1 4 5 5 . 2 1 Wheel . | . . . . . . . . . . . . . . . . Hover 4 | . 3 . . 1 . . . . . . . . . . . Flight . | . . . . . . . . . . . . . . . . Utility 65 | . 3 1 1 . 6 1 . 4 8 1 20 10 2 3 5 Device 17 | . 1 1 . . 3 1 . 2 2 1 5 1 . . . Storage 4 | . . . 1 . 1 . . . . . 2 . . . . Processor 1 | . . . . . . . . . . . . 1 . . . Hackware 22 | . 1 . . . . . . 1 5 . 5 5 2 1 2 Protection 21 | . 1 . . . 2 . . 1 1 . 8 3 . 2 3 Artifact . | . . . . . . . . . . . . . . . . Weapon 84 | . 5 . . 6 14 . 2 9 3 . 22 7 . 7 9 Energy Gun 39 | . 5 . . 5 11 . 1 6 . . 6 3 . 2 . Energy Cannon . | . . . . . . . . . . . . . . . . Ballistic Gun 4 | . . . . . . . . . . . . 1 . . 3 Ballistic Cannon 3 | . . . . . . . . . . . 3 . . . . Launcher 17 | . . . . 1 3 . 1 3 2 . 2 2 . 2 1 Special Weapon . | . . . . . . . . . . . . . . . . Impact Weapon 6 | . . . . . . . . . . . 6 . . . . Slashing Weapon 8 | . . . . . . . . . 1 . 1 1 . 2 3 Piercing Weapon . | . . . . . . . . . . . . . . . . Special Melee Weapon 7 | . . . . . . . . . . . 4 . . 1 2 Unidentified Prototypes 2 | . 1 . . . . . . . . . 1 . . . . Parts Lost 52 | . 2 . . 1 1 . . 3 3 5 10 8 . 1 18 Power 7 | . . . . . . . . . . 1 4 . . . 2 Propulsion 11 | . 1 . . 1 . . . . . 2 1 1 . 1 4 Utility 18 | . . . . . 1 . . 1 1 . 3 4 . . 8 Weapon 16 | . 1 . . . . . . 2 2 2 2 3 . . 4 Highest Loss Streak 12 | . 2 . . 1 1 . . 3 2 4 3 5 . 1 12 To Critical Strikes . | . . . . . . . . . . . . . . . . Average Slot Usage (%) 91 | . 84 100 64 91 97 99 98 98 89 92 90 93 88 89 64 Engine 7 | . 14 14 7 10 16 18 17 12 6 . 2 7 . . . Core 4 | . . . . . . . . 5 7 1 8 3 6 6 3 Reactor 1 | . . . . . . . . . . 12 . 2 6 6 3 Leg 21 | . . . . . 26 27 26 27 23 22 22 21 20 18 12 Hover 1 | . 22 28 28 27 . . . . . . . . . . . Device 5 | . 2 9 7 . 10 17 18 13 1 2 2 . 6 6 3 Storage 7 | . . . 6 14 9 9 9 9 7 7 7 7 6 6 3 Hackware 14 | . 6 14 14 14 3 . . 1 22 23 23 19 15 11 17 Protection 5 | . 6 4 . . 3 . . 1 1 4 3 4 6 18 8 Energy Gun 11 | . 28 28 . 19 21 27 19 26 12 5 8 5 . . . Launcher 2 | . . . . 3 4 . 7 . 1 3 . 2 . 5 2 Slashing Weapon 2 | . . . . . . . . . 3 7 2 2 6 4 3 Special Melee Weapon 1 | . . . . . . . . . . . 1 7 6 1 . Naked Turns . | . . . . . . . . . . . . . . . . Heaviest Build 82 | 5 14 14 10 27 49 50 50 62 58 70 56 62 60 82 82 Greatest Support 84 | 40 40 14 14 14 60 60 60 60 60 74 84 84 81 81 68 Greatest Overweight (x) 2 | . 1 . . 2 2 . . 1 . 1 1 1 . 1 1 Average Overweight (x) . | . . . . . . . . . . . . . . . . Largest Inventory Capacity 15 | 5 5 5 10 10 15 15 15 15 15 15 15 15 15 15 15 Average Capacity 14 | 5 5 5 7 10 10 15 15 15 15 15 15 15 15 15 11 Most Carried 15 | 4 5 3 9 9 15 15 15 15 15 15 15 15 15 15 14 Average Carried 12 | 1 4 3 5 7 10 14 15 14 13 14 11 14 13 13 10 Final Capacity 15 | 5 5 5 10 10 15 15 15 15 15 15 15 15 15 15 5 Final Carried 15 | 4 3 3 9 7 15 15 15 15 13 14 15 15 12 14 4 Class Distribution -------------------- 37% | Hacker-Mutant 22% | Mutant 17% | Bothacker-Mutant 10% | Skirmisher 5% | Botlord-Mutant 4% | Commander-Mutant Dominant Class ---------------- Mutant | -10/Materials Mutant | -10/Mines Mutant | -10/Exiles Mutant | -9/Mines Mutant | -8/Materials Mutant | -8/Garrison Mutant | -8/Materials Skirmisher | -8/Garrison Hacker-Mutant | -7/Factory Hacker-Mutant | -7/Garrison Hacker-Mutant | -7/Factory Bothacker-Mutant | -7/Garrison Bothacker-Mutant | -6/Factory Bothacker-Mutant | -6/Garrison Botlord-Mutant | -5/Factory Resources | -11 -10 -10 -10 -9 -8 -8 -8 -8 -7 -7 -7 -7 -6 -6 -5 ----------- Run | Jun Mat Min Exi Min Mat Gar Mat Gar Fac Gar Fac Gar Fac Gar Fac Matter Collected 4370 | 230 120 26 20 133 582 35 75 256 171 298 1007 571 42 691 113 Remotely . | . . . . . . . . . . . . . . . . Salvage Created 6127 | . 376 85 . 109 595 80 196 677 216 683 1651 353 . 441 665 Parts 345 | . 25 6 . 6 42 2 18 37 19 33 72 22 . 26 37 Haulers Intercepted 2 | . . . . . 2 . . . . . . . . . . Recyclers Shooed 3 | . . . . . 2 . 1 . . . . . . . . Parts Field Recycled . | . . . . . . . . . . . . . . . . Retrieved Matter . | . . . . . . . . . . . . . . . . Parts Self-Destructed . | . . . . . . . . . . . . . . . . Prevented . | . . . . . . . . . . . . . . . . Kills | -11 -10 -10 -10 -9 -8 -8 -8 -8 -7 -7 -7 -7 -6 -6 -5 ------- Run | Jun Mat Min Exi Min Mat Gar Mat Gar Fac Gar Fac Gar Fac Gar Fac Combat Hostiles Destroyed 159 | . 9 2 . 5 15 . 5 18 7 21 27 8 . 23 19 Melee 16 | . . . . . . . . . 2 6 6 . . 1 1 Guns 38 | . 6 1 . 1 3 . 3 10 2 3 4 2 . . 3 Cannons 10 | . . . . . . . . . . . 10 . . . . AOE 93 | . 2 1 . 4 12 . 2 8 3 12 7 6 . 21 15 Classes Destroyed 17 | . 4 . . 1 6 . . 1 1 2 . . . 1 1 Worker 5 | . . . . . 1 . 1 . . . 3 . . . . Builder 3 | . . . . . 1 . . . . . 2 . . . . Tunneler 2 | . . . . . 1 . . . . . 1 . . . . Hauler 2 | . . . . . 2 . . . . . . . . . . Recycler 9 | . . . . . 2 . . . . . 7 . . . . Operator 2 | . 1 . . . . . . . 1 . . . . . . Watcher 11 | . 1 . . . 4 . . . 1 . 3 . . 1 1 Swarmer 64 | . 3 . . 3 11 . 2 6 5 11 5 6 . 4 8 Cutter 4 | . . . . . . . . . . . . . . 4 . Saboteur 3 | . . . . . . . . 3 . . . . . . . Grunt 52 | . 6 2 . 1 2 . 1 6 . 7 8 1 . 11 7 Brawler 3 | . . . . 1 . . . 2 . . . . . . . Duelist 9 | . . . . . . . . . . 1 4 . . 2 2 Protector 1 | . . . . . . . . . . . . . . . 1 Sentry 11 | . . . . . 2 . 2 1 . . 3 1 . 2 . Hunter 4 | . . . . . . . . . . 2 1 . . . 1 Programmer 8 | . . . . . . . . . 2 . 6 . . . . Best Kill Streak 12 | . 5 2 . 3 9 . 3 6 3 7 6 2 . 6 12 Combat Bots Only 11 | . 4 2 . 3 5 . 2 6 3 7 3 2 . 6 11 Max Kills in Single Turn 12 | . 2 1 . 2 4 . 2 4 2 3 5 1 . 4 12 Gunslinging . | . . . . . . . . . . . . . . . . Exploded 11 | . 2 1 . 2 4 . 2 4 2 3 3 1 . 4 11 Melee 1 | . . . . . . . . . 1 1 1 . . 1 1 Uniques/NPCs Destroyed . | . . . . . . . . . . . . . . . . Combat | -11 -10 -10 -10 -9 -8 -8 -8 -8 -7 -7 -7 -7 -6 -6 -5 -------- Run | Jun Mat Min Exi Min Mat Gar Mat Gar Fac Gar Fac Gar Fac Gar Fac Damage Taken 10117 | . 246 42 . 127 803 . 197 452 690 866 1977 1489 78 598 2552 Core 1833 | . 11 15 . 9 120 . 28 75 44 71 193 176 . 80 1011 Absorbed by Shields 109 | . . . . . . . . 88 . 21 . . . . . Regen/Repaired (Parts) 801 | . . . . . . . 187 . 354 . 260 . . . . Core Remaining (%) 73 | 100 . . . 86 . . . 59 . . . 30 . 90 . Volleys Fired 430 | . 18 2 . 14 50 11 10 50 18 39 79 80 . 42 17 Largest 3 | . 2 2 . 2 3 3 3 3 3 2 3 2 . 2 3 Hottest 183 | . 90 90 . 90 165 165 165 165 175 98 183 140 . 105 105 Shots Fired 635 | . 35 4 . 15 77 20 18 105 27 40 121 81 . 45 47 Gun 417 | . 35 4 . 11 45 20 13 95 20 23 45 55 . 6 45 Cannon 68 | . . . . . . . . . . . 68 . . . . Launcher 150 | . . . . 4 32 . 5 10 7 17 8 26 . 39 2 Special . | . . . . . . . . . . . . . . . . Kinetic 113 | . . . . . . . . . . . 68 . . . 45 Thermal 15 | . . . . . . . . . . . 13 2 . . . Explosive 135 | . . . . 4 32 . 5 10 7 17 8 11 . 39 2 Electromagnetic 372 | . 35 4 . 11 45 20 13 95 20 23 32 68 . 6 . Robot Hit Streak 19 | . 10 7 . 10 8 5 8 10 3 3 15 8 . 19 7 Robot Miss Streak 8 | . 4 2 . 2 3 1 4 2 4 4 4 3 . . 8 Penetration Max 3 | . . . . . . . . . . . . . . . 3 Secondary Targets 4 | . . . . . . . 1 . 1 . . . . . 2 Max Gunslinging Chain 1 | . . . . . . . 1 . 1 . . . . . 1 Shots Hit Robots 359 | . 28 4 . 9 35 11 11 47 23 22 88 31 4 17 29 Core Hits 322 | . 20 4 . 7 34 3 7 31 10 37 61 14 . 50 44 Critical Kills 3 | . . . . . . . . . . . 1 . . . 2 Critical Parts Destroyed 9 | . . . . . . . . . . . 2 . . . 7 Critical Strikes 23 | . . . . . . 2 . 3 . . 8 . . . 10 Destroy 9 | . . . . . . . . . . . . . . . 9 Blast 2 | . . . . . . . . . . . 2 . . . . Corrupt 5 | . . . . . . 2 . 3 . . . . . . . Smash 3 | . . . . . . . . . . . 3 . . . . Sever 4 | . . . . . . . . . . . 3 . . . 1 Melee Attacks 166 | . . . . . . . . . 26 21 66 30 4 9 10 Impact 31 | . . . . . . . . . . . 31 . . . . Slashing 95 | . . . . . . . . . 26 21 27 5 . 7 9 Piercing . | . . . . . . . . . . . . . . . . Sneak Attacks 21 | . . . . . . . . . 2 . 5 9 2 1 2 Combat Hostiles 4 | . . . . . . . . . . . 1 . . 1 2 Follow-up Attacks . | . . . . . . . . . . . . . . . . Damage Inflicted 19884 | . 738 101 . 387 1975 186 349 1428 1177 1923 4127 724 . 3621 3148 Guns 4101 | . 522 47 . 114 521 186 218 952 128 165 583 147 . 94 424 Cannons 655 | . . . . . . . . . . . 655 . . . . Explosions 12308 | . 216 54 . 273 1454 . 131 476 344 1132 1634 518 . 3498 2578 Melee 2820 | . . . . . . . . . 705 626 1255 59 . 29 146 Ramming . | . . . . . . . . . . . . . . . . Kinetic 1079 | . . . . . . . . . . . 655 . . . 424 Thermal 3813 | . 216 54 . 42 122 . . . . . 874 141 . 123 2241 Explosive 8302 | . . . . 231 1332 . 131 476 344 1132 944 . . 3375 337 Electromagnetic 3870 | . 522 47 . 114 521 186 218 952 128 165 399 524 . 94 . Impact 759 | . . . . . . . . . . . 759 . . . . Slashing 2061 | . . . . . . . . . 705 626 496 59 . 29 146 Piercing . | . . . . . . . . . . . . . . . . Highest Corruption 18 | . 1 1 1 1 2 . . . 1 . 5 18 . . 3 Average Corruption 7 | . 1 1 1 1 1 . . . 1 . 2 15 . . 2 Corruption Purged 11 | . . . . . 2 . . . 1 . 8 . . . . Corruption Blocked . | . . . . . . . . . . . . . . . . Effects 109 | . 1 1 2 3 7 . . . 1 . 10 83 . . 1 Message Errors 36 | . . . 1 1 2 . . . 1 . 2 29 . . . Matter Fused 20 | . 1 . . 1 1 . . . . . 1 16 . . . Heat Flow Errors 13 | . . . . . . . . . . . 1 12 . . . Energy Discharges 13 | . . . . . 1 . . . . . 2 10 . . . Parts Rejected 1 | . . . . . . . . . . . . 1 . . . Parts Fused 2 | . . . . 1 . . . . . . . 1 . . . Data Loss (minor) 12 | . . 1 1 . . . . . . . 3 7 . . . Data Loss (major) 2 | . . . . . . . . . . . . 1 . . 1 Misfires 3 | . . . . . 2 . . . . . 1 . . . . Alerts 2 | . . . . . 1 . . . . . . 1 . . . Weapon Failures 5 | . . . . . . . . . . . . 5 . . . Overload Shots . | . . . . . . . . . . . . . . . . Overflow Damage 1538 | . 14 . . 20 95 . 16 57 156 58 599 2 . 63 458 Projectiles 6 | . . . . . . . . . . . 6 . . . . Explosions 899 | . 14 . . 20 95 . 16 57 7 32 193 2 . 63 400 Melee 633 | . . . . . . . . . 149 26 400 . . . 58 Knockbacks 7 | . . . . . . . . . . . 7 . . . . Impact 4 | . . . . . . . . . . . 4 . . . . Kinetic 3 | . . . . . . . . . . . 3 . . . . Secondary . | . . . . . . . . . . . . . . . . Self-Inflicted Damage 1335 | . 101 . . 34 251 . . 43 43 86 186 145 . 82 364 Shots 29 | . 3 . . 1 6 . . 2 1 2 3 5 . 2 4 Rammed . | . . . . . . . . . . . . . . . . Targets Rammed . | . . . . . . . . . . . . . . . . Kicked . | . . . . . . . . . . . . . . . . Crushed . | . . . . . . . . . . . . . . . . Highest Temperature 399 | . 309 108 . 90 308 234 101 321 360 311 399 278 . 30 71 Average Temperature 82 | . 101 55 . 40 77 101 50 97 118 97 76 79 . 18 30 Received Heat Transfer 1560 | . 93 27 . 36 99 . 72 195 12 36 315 189 . 54 432 Effects 11 | . . . . . 2 . . . 1 3 3 2 . . . Shutdowns 1 | . . . . . . . . . . . 1 . . . . Energy Bleed 3 | . . . . . . . . . 1 1 1 . . . . Interference 6 | . . . . . 2 . . . . 1 1 2 . . . Short Circuit 1 | . . . . . . . . . . 1 . . . . . Siege Activations . | . . . . . . . . . . . . . . . . Robots Corrupted 4 | . 1 . . . . 1 . 1 . . . . . 1 . Combat Hostiles 3 | . 1 . . . . 1 . . . . . . . 1 . Parts Fried 12 | . . . . . 2 2 1 4 . . 2 1 . . . Impact Corruptions 10 | . . . . . . . . . . . 10 . . . . Robots Melted . | . . . . . . . . . . . . . . . . Combat Hostiles . | . . . . . . . . . . . . . . . . Parts Melted 1 | . . . . . . . . . . . 1 . . . . Heat Transferred 2850 | . 300 50 . 50 150 . . . . . 825 175 . 100 1200 Parts Sabotaged 2 | . . . . . . . . . . . . . . . 2 Parts Stolen . | . . . . . . . . . . . . . . . . Parts Stripped . | . . . . . . . . . . . . . . . . Power Chain Reactions 11 | . 3 1 . 1 3 . . . . . 1 1 . 1 . Missiles Intercepted . | . . . . . . . . . . . . . . . . Alert | -11 -10 -10 -10 -9 -8 -8 -8 -8 -7 -7 -7 -7 -6 -6 -5 ------- Run | Jun Mat Min Exi Min Mat Gar Mat Gar Fac Gar Fac Gar Fac Gar Fac Peak Influence 1848 | . 290 164 . 151 314 760 604 1313 754 643 456 1231 658 1848 1559 Initial 970 | . . 112 . . . 155 370 313 673 44 337 298 646 420 970 Average 567 | . 95 163 . 36 120 515 471 897 449 388 177 818 635 1316 1082 Maximum Alert Level 5 | . 1 . . . 1 3 2 4 3 2 2 4 2 5 4 Low Security (%) 29 | 100 81 100 . 100 83 1 . . 18 25 63 . . . . Level 1 15 | . 18 . . . 16 19 12 8 14 20 32 12 . . . Level 2 23 | . . . . . . 66 87 28 51 54 4 19 100 7 . Level 3 13 | . . . . . . 12 . 26 16 . . 35 . 20 43 Level 4 13 | . . . . . . . . 36 . . . 32 . 31 56 Level 5 5 | . . . . . . . . . . . . . . 40 . High Security . | . . . . . . . . . . . . . . . . Max Security . | . . . . . . . . . . . . . . . . Squads Dispatched 38 | . 1 . . . 2 . 3 . 5 . 17 . 2 . 8 Investigation 14 | . . . . . . . 2 . 1 . 8 . 1 . 2 Extermination 9 | . . . . . . . . . 3 . 6 . . . . Reinforcement 9 | . 1 . . . 2 . 1 . 1 . 1 . . . 3 Assault 4 | . . . . . . . . . . . 1 . . . 3 Garrison 2 | . . . . . . . . . . . 1 . 1 . . Intercept . | . . . . . . . . . . . . . . . . Searches Triggered . | . . . . . . . . . . . . . . . . Construction Impeded 2 | . . . . . 1 . . . . . . . . . 1 Haulers Reinforced . | . . . . . . . . . . . . . . . . Active Scanning Responses . | . . . . . . . . . . . . . . . . Cargo Convoy Interrupts . | . . . . . . . . . . . . . . . . Alert ID Control Effect 21 | . . . . . . . . . . . . 12 5 4 . Stealth | -11 -10 -10 -10 -9 -8 -8 -8 -8 -7 -7 -7 -7 -6 -6 -5 --------- Run | Jun Mat Min Exi Min Mat Gar Mat Gar Fac Gar Fac Gar Fac Gar Fac Distress Signals 12 | . 1 . . . 1 . 3 . 1 . 4 . . . 2 Communications Jammed . | . . . . . . . . . . . . . . . . Distress Signals . | . . . . . . . . . . . . . . . . Times Spotted 249 | . 10 3 . 5 14 . 13 24 18 18 42 32 6 19 45 Peak Tracking Total 24 | . 5 2 . 3 4 . 5 4 5 5 4 4 3 5 24 Tactical Retreats 12 | . . . . 1 . . . 1 . 1 1 1 . 1 6 Traps | -11 -10 -10 -10 -9 -8 -8 -8 -8 -7 -7 -7 -7 -6 -6 -5 ------- Run | Jun Mat Min Exi Min Mat Gar Mat Gar Fac Gar Fac Gar Fac Gar Fac Traps Triggered 26 | . . . . . . . 1 5 . 4 2 2 . 9 3 Indirectly . | . . . . . . . . . . . . . . . . Trap Hack Attempts 40 | . . . . . . . . . . . . 39 . 1 . Triggered . | . . . . . . . . . . . . . . . . Disarmed 1 | . . . . . . . . . . . . . . 1 . Reprogrammed 4 | . . . . . . . . . . . . 4 . . . Reused 1 | . . . . . . . . . . . . 1 . . . Traps Extracted . | . . . . . . . . . . . . . . . . Installed . | . . . . . . . . . . . . . . . . Triggered 1 | . . . . . . . . . . . . 1 . . . Machines | -11 -10 -10 -10 -9 -8 -8 -8 -8 -7 -7 -7 -7 -6 -6 -5 ---------- Run | Jun Mat Min Exi Min Mat Gar Mat Gar Fac Gar Fac Gar Fac Gar Fac Machines Disabled 74 | . 2 . . . 8 5 1 3 3 2 15 11 . 10 14 Max in Single Turn 13 | . 2 . . . 1 1 1 1 1 1 6 2 . 2 13 Garrison Access 1 | . . . . . . . . . . . 1 . . . . Garrison Relay 21 | . . . . . . 5 . 2 . 2 . 8 . 4 . Phase Generator 1 | . . . . . . . . . . . . . . 1 . Machines Repaired . | . . . . . . . . . . . . . . . . Machines Sabotaged . | . . . . . . . . . . . . . . . . Overloaded Fab Kills . | . . . . . . . . . . . . . . . . Hacking | -11 -10 -10 -10 -9 -8 -8 -8 -8 -7 -7 -7 -7 -6 -6 -5 --------- Run | Jun Mat Min Exi Min Mat Gar Mat Gar Fac Gar Fac Gar Fac Gar Fac Machines Accessed 73 | . 3 . 2 1 7 2 6 1 15 . 28 2 3 1 2 Terminals 40 | . 2 . . 1 6 2 2 1 10 . 12 2 . 1 1 Fabricators 8 | . . . . . . . . . 1 . 5 . 1 . 1 Repair Stations 7 | . 1 . . . . . 1 . 2 . 2 . 1 . . Recycling Units 5 | . . . . . . . 1 . 1 . 3 . . . . Scanalyzers 3 | . . . . . . . 1 . . . 2 . . . . Garrison Access 8 | . . . . . 1 . 1 . 1 . 4 . 1 . . Total Hacks 246 | . 9 . 2 2 25 3 22 3 54 . 110 3 8 1 4 Successful 156 | . 3 . 2 . 12 . 16 1 31 . 84 2 4 1 . Failed 87 | . 6 . . 2 12 3 6 2 22 . 25 1 4 . 4 Catastrophic 19 | . 1 . . 1 5 1 1 1 4 . 2 . 1 . 2 Database Lockouts 3 | . . . . . 1 . . . 1 . 1 . . . . Manual 110 | . 7 . 1 2 18 1 6 . 26 . 45 . 1 . 3 Terminals 137 | . 7 . . 2 23 3 6 3 36 . 51 3 . 1 2 Fabricators 21 | . . . . . . . . . 4 . 13 . 2 . 2 Repair Stations 26 | . 2 . . . . . 5 . 6 . 9 . 4 . . Recycling Units 13 | . . . . . . . 2 . 5 . 6 . . . . Scanalyzers 27 | . . . . . . . 8 . . . 19 . . . . Garrison Access 20 | . . . . . 2 . 1 . 3 . 12 . 2 . . Terminal Hacks 49 | . 2 . 2 . 8 . . 1 10 . 23 2 . 1 . Record 1 | . . . 1 . . . . . . . . . . . . Part Schematic 12 | . . . . . 2 . . . 2 . 8 . . . . Robot Schematic 5 | . 2 . . . . . . . 1 . 2 . . . . Robot Analysis 1 | . . . . . . . . . . . 1 . . . . Prototype ID Bank 1 | . . . . . . . . . . . 1 . . . . Open Door 1 | . . . . . . . . . . . . 1 . . . Emergency Access Points 2 | . . . . . . . . 1 . . . 1 . . . Machine Index 1 | . . . . . . . . . . . 1 . . . . Terminal Index 2 | . . . . . 1 . . . 1 . . . . . . Fabricator Index 1 | . . . . . . . . . . . 1 . . . . Garrison Index 1 | . . . . . . . . . 1 . . . . . . Alert Level 1 | . . . . . 1 . . . . . . . . . . Unreport Threat 7 | . . . . . 2 . . . 3 . 2 . . . . Locate Traps 2 | . . . . . . . . . 1 . 1 . . . . Dispatch Records 2 | . . . . . 1 . . . . . 1 . . . . Security Status 1 | . . . . . . . . . . . 1 . . . . Patrol Status 1 | . . . . . . . . . . . 1 . . . . Recall Investigation 1 | . . . . . . . . . . . 1 . . . . Registered Prototypes 1 | . . . . . . . . . . . 1 . . . . Zone Layout 3 | . . . . . 1 . . . 1 . 1 . . . . Patrol Navigation 1 | . . . . . . . . . . . . . . 1 . EX-Prototype ID Bank 1 | . . . 1 . . . . . . . . . . . . Fabricator Hacks 17 | . . . . . . . . . 4 . 11 . 2 . . Load Schematic 9 | . . . . . . . . . 2 . 6 . 1 . . Build 8 | . . . . . . . . . 2 . 5 . 1 . . Repair Station Hacks 14 | . . . . . . . 4 . 4 . 5 . 1 . . Scan Component 8 | . . . . . . . 2 . 2 . 3 . 1 . . Repair 6 | . . . . . . . 2 . 2 . 2 . . . . Recycling Unit Hacks 2 | . . . . . . . . . 1 . 1 . . . . Retrieve Components 2 | . . . . . . . . . 1 . 1 . . . . Scanalyzer 25 | . . . . . . . 7 . . . 18 . . . . Insert Component 10 | . . . . . . . 3 . . . 7 . . . . Analyze 15 | . . . . . . . 4 . . . 11 . . . . Garrison Access Hacks 6 | . . . . . 1 . 1 . 1 . 2 . 1 . . Unlock Access 5 | . . . . . 1 . 1 . 1 . 1 . 1 . . Seal Access 1 | . . . . . . . . . . . 1 . . . . Unauthorized Hacks 43 | . 1 . . . 3 . 4 . 11 . 24 . . . . Terminals 23 | . 1 . . . 3 . 3 . 5 . 11 . . . . Track 3 | . . . . . . . . . . . 3 . . . . Assimilate 3 | . . . . . . . . . 1 . 2 . . . . Botnet 12 | . . . . . 2 . 2 . 4 . 4 . . . . Operators 5 | . 1 . . . 1 . 1 . . . 2 . . . . Fabricators . | . . . . . . . . . . . . . . . . Repair Stations 1 | . . . . . . . . . 1 . . . . . . Mechanics 1 | . . . . . . . . . 1 . . . . . . Recycling Units 9 | . . . . . . . . . 4 . 5 . . . . Monitor 2 | . . . . . . . . . 1 . 1 . . . . Reject 2 | . . . . . . . . . 1 . 1 . . . . Recyclers 2 | . . . . . . . . . 1 . 1 . . . . Mask 3 | . . . . . . . . . 1 . 2 . . . . Scanalyzers 2 | . . . . . . . 1 . . . 1 . . . . Extract 2 | . . . . . . . 1 . . . 1 . . . . Garrison Access 8 | . . . . . . . . . 1 . 7 . . . . Broadcast 2 | . . . . . . . . . . . 2 . . . . Reprogram 4 | . . . . . . . . . 1 . 3 . . . . Intercept 1 | . . . . . . . . . . . 1 . . . . Watchers 1 | . . . . . . . . . . . 1 . . . . Data Cores Recovered . | . . . . . . . . . . . . . . . . Used . | . . . . . . . . . . . . . . . . Hacking Detections 56 | . 3 . . 1 7 2 4 1 12 . 20 1 2 1 2 Full Trace Events 11 | . 1 . . . . 1 . . 1 . 5 . 1 . 2 Feedback Events 1 | . 1 . . . . . . . . . . . . . . Corruption 1 | . 1 . . . . . . . . . . . . . . Feedback Blocked . | . . . . . . . . . . . . . . . . Robot Schematics Acquired 5 | . 2 . . . . . . . 1 . 2 . . . . Robots Built 8 | . . . . . . . . . 2 . 5 . 1 . . Authchips 4 | . . . . . . . . . 2 . 1 . 1 . . Time 489 | . . . . . . . . . 162 . 287 . 40 . . Total Robot Build Rating 14 | . . . . . . . . . 2 . 11 . 1 . . Part Schematics Acquired 30 | . . . . . 2 . 8 . 2 . 18 . . . . Parts Built 2 | . . . . . . . . . . . 2 . . . . Authchips . | . . . . . . . . . . . . . . . . Time 128 | . . . . . . . . . . . 128 . . . . Total Part Build Rating 16 | . . . . . . . . . . . 16 . . . . Parts Repaired 6 | . . . . . . . 2 . 2 . 2 . . . . Time 193 | . . . . . . . 76 . 48 . 69 . . . . Parts Recycled . | . . . . . . . . . . . . . . . . Recycled Matter . | . . . . . . . . . . . . . . . . Retrieved Matter . | . . . . . . . . . . . . . . . . Retrieved Components 12 | . . . . . . . . . 9 . 3 . . . . Parts Scanalyzed 10 | . . . . . . . 3 . . . 7 . . . . Part Schematics Acquired 10 | . . . . . . . 3 . . . 7 . . . . Parts Damaged 2 | . . . . . . . . . . . 2 . . . . Bothacking | -11 -10 -10 -10 -9 -8 -8 -8 -8 -7 -7 -7 -7 -6 -6 -5 ------------ Run | Jun Mat Min Exi Min Mat Gar Mat Gar Fac Gar Fac Gar Fac Gar Fac Used RIF Installer 5 | . . . . . . 1 . 1 . 1 . 1 . 1 . Zone Cloak 1 | . . . . . . . . . . . . . . 1 . Watcher Feeds 1 | . . . . . . . . . . 1 . . . . . Alert ID Control 1 | . . . . . . . . 1 . . . . . . . Program Shield 1 | . . . . . . . . . . . . 1 . . . Robots Hacked 21 | . . . . . . . . . . . 6 9 3 2 1 Non-combat 2 | . . . . . . . . . . . 1 . 1 . . Combat 19 | . . . . . . . . . . . 5 9 2 2 1 Robot Hacks Applied 22 | . . . . . . . . . . . 6 9 4 2 1 no_distress 2 | . . . . . . . . . . . 1 . 1 . . find_chute 1 | . . . . . . . . . . . . . 1 . . reboot_system 2 | . . . . . . . . . . . . . 1 . 1 overwrite_iff 2 | . . . . . . . . . . . . 1 1 . . formatsys_high 15 | . . . . . . . . . . . 5 8 . 2 . Relay Couplers Released 90 | . . . . . . 19 . 10 . 8 . 35 . 18 . Machine Destruction 90 | . . . . . . 19 . 10 . 8 . 35 . 18 . Attached 13 | . . . . . . . . 1 . . 3 5 1 1 2 Fabnet Peak Effective % . | . . . . . . . . . . . . . . . . Robots Rewired 17 | . . . . . . 7 . 4 . . 1 5 . . . Allies Hacked 1 | . . . . . . . . . . . 1 . . . . Hacks Repelled . | . . . . . . . . . . . . . . . . Allies | -11 -10 -10 -10 -9 -8 -8 -8 -8 -7 -7 -7 -7 -6 -6 -5 -------- Run | Jun Mat Min Exi Min Mat Gar Mat Gar Fac Gar Fac Gar Fac Gar Fac Total Allies 50 | . . . . . . 7 . 4 3 . 18 14 2 2 . Largest Group 8 | . . . . . . 7 7 3 3 . 3 8 7 3 1 Highest-Rated Group 261 | . . . . . . 125 125 120 84 . 74 261 229 74 11 Highest-Rated Ally 85 | . . . . . . 21 21 40 40 . 37 85 85 32 11 Total Orders 44 | . . . . . . . 1 2 5 . 9 6 3 17 1 STAY 21 | . . . . . . . 1 1 2 . 5 4 1 6 1 ROAM 1 | . . . . . . . . . . . . . . 1 . FOLLOW 17 | . . . . . . . . 1 1 . 4 2 2 7 . AID 2 | . . . . . . . . . 2 . . . . . . PICKUP 3 | . . . . . . . . . . . . . . 3 . Ally Attacks 240 | . . . . . . . 45 30 9 . 57 57 26 16 . Total Damage 5746 | . . . . . . . 876 1494 152 . 677 1146 830 571 . Kills 52 | . . . . . . . 7 13 2 . 3 16 6 5 . Allies Corrupted . | . . . . . . . . . . . . . . . . Allies Melted . | . . . . . . . . . . . . . . . . Turrets Deployed 2 | . . . . . . . . 2 . . . . . . . Intel | -11 -10 -10 -10 -9 -8 -8 -8 -8 -7 -7 -7 -7 -6 -6 -5 ------- Run | Jun Mat Min Exi Min Mat Gar Mat Gar Fac Gar Fac Gar Fac Gar Fac Robot Analysis Total 1 | . . . . . . . . . . . 1 . . . . Derelict Logs Recovered 1 | . . . . 1 . . . . . . . . . . . Drone Launches . | . . . . . . . . . . . . . . . . Drone Recoveries . | . . . . . . . . . . . . . . . . Exploration | -11 -10 -10 -10 -9 -8 -8 -8 -8 -7 -7 -7 -7 -6 -6 -5 ------------- Run | Jun Mat Min Exi Min Mat Gar Mat Gar Fac Gar Fac Gar Fac Gar Fac Turns Passed 17061 | 63 256 120 236 497 1154 1045 658 1476 1852 645 4023 1850 239 2216 731 Spaces Moved 10824 | 37 192 176 407 318 684 672 403 875 1112 404 2561 1212 184 1085 502 Core 199 | 3 . . . . . . . . . . . . . . 196 Treads 46 | 34 12 . . . . . . . . . . . . . . Legs 9485 | . . . . . 671 672 403 875 1112 404 2561 1212 184 1085 306 Wheels . | . . . . . . . . . . . . . . . . Hover 1094 | . 180 176 407 318 13 . . . . . . . . . . Flight . | . . . . . . . . . . . . . . . . Fastest Speed 50 | 50 56 56 56 56 116 130 130 130 126 113 110 110 113 113 50 Average Speed 122 | 151 71 56 56 109 130 130 130 135 127 114 115 113 113 176 118 Slowest Speed 200 | 160 160 56 56 180 200 130 130 200 130 196 195 180 113 186 190 Overloaded Moves . | . . . . . . . . . . . . . . . . Propulsion Burnouts . | . . . . . . . . . . . . . . . . Robots Hopped . | . . . . . . . . . . . . . . . . Cave-ins Triggered 3 | . . . . . 1 . . . . . . 2 . . . Exploration Rate (%) 52 | 3 49 39 71 80 58 89 38 79 30 45 57 82 6 85 25 Regions Visited 15 Branch Regions 3 Pre-discovered Areas 1 | . . . 1 . . . . . . . . . . . . Known Exits Taken 5 | . . . . . 1 . 1 . 1 . 1 . 1 . . Unknown Exits Taken 5 | 1 1 1 1 1 . . . . . . . . . . . Scrap Searched 3 | . . 1 . 2 . . . . . . . . . . . Spaces Dug 326 | . . . . 12 103 . 8 15 14 . 59 110 . . 5 Terrain Destroyed 1299 | . 10 2 . 45 262 . 36 63 38 65 144 127 . 458 49 Melee 30 | . . . . . . . . . 7 . 17 1 . . 5 Projectile 18 | . . . . . . . . . . . 18 . . . . AOE 1247 | . 10 2 . 45 262 . 36 63 31 65 109 126 . 458 40 Terrain Rammed . | . . . . . . . . . . . . . . . . Walls Destroyed . | . . . . . . . . . . . . . . . . Machines Disabled . | . . . . . . . . . . . . . . . . Actions | -11 -10 -10 -10 -9 -8 -8 -8 -8 -7 -7 -7 -7 -6 -6 -5 --------- Run | Jun Mat Min Exi Min Mat Gar Mat Gar Fac Gar Fac Gar Fac Gar Fac Total 13748 | 43 277 192 416 452 879 829 519 1076 1474 510 3382 1578 213 1324 584 Wait 1697 | . 39 13 . 107 93 23 102 85 296 13 589 162 23 117 35 Move 10804 | 36 191 175 406 317 682 670 403 873 1112 402 2560 1209 183 1083 502 Hop . | . . . . . . . . . . . . . . . . Pick Up 94 | 4 6 . 3 2 13 6 . 10 6 3 18 11 . 12 . Fast Attach 49 | 3 7 1 1 . 7 . 2 1 1 3 11 8 . 1 3 Attach 66 | . 6 . . 6 2 1 . 5 8 3 8 9 2 7 9 Detach 22 | . 2 . 4 2 . . . 1 1 . 2 . . 5 5 Swap 88 | . . . 1 3 16 1 2 8 4 5 31 10 . 4 3 Drop 82 | . 8 1 1 1 15 6 . 9 2 6 13 11 1 8 . Fire 430 | . 18 2 . 14 50 11 10 50 18 39 79 80 . 42 17 Melee 166 | . . . . . . . . . 26 21 66 30 4 9 10 Ram . | . . . . . . . . . . . . . . . . Kick . | . . . . . . . . . . . . . . . . Crush . | . . . . . . . . . . . . . . . . Escape Stasis 70 | . . . . . 1 . . 20 . 15 . 1 . 33 . Rewire 140 | . . . . . . 111 . 14 . . 5 8 . 2 . Trap 40 | . . . . . . . . . . . . 39 . 1 . Miscellaneous . | . . . . . . . . . . . . . . . . Route ------- -11/Junkyard -10/Materials -10/Mines -10/Exiles -9/Mines -8/Materials (discovered 4 exits: *Fac x3 / Gar) -8/Garrison (discovered 3 exits: *Mat x3) -8/Materials (discovered 2 exits: *Fac / Gar) -8/Garrison (discovered 3 exits: *Fac x3) -7/Factory (discovered 3 exits: [*Low x2] / Gar) -7/Garrison -7/Factory (discovered 6 exits: *Fac x2 / [*Sto] / [*Low x2] / Gar) -7/Garrison (discovered 3 exits: *Fac x3) -6/Factory -6/Garrison (discovered 3 exits: *Fac x3) -5/Factory History --------- Turn | Location | Event 8 | -11/Junkyard | Discovered new exit (range 15) 64 | -11/Junkyard | Entered Materials 303 | -10/Materials | Discovered new exit (range 10) 318 | -10/Materials | Build established: Mutant 320 | -10/Materials | Entered Mines 368 | -10/Mines | Assembled infested the area 437 | -10/Mines | Discovered new exit (range 6) 440 | -10/Mines | Entered Exiles 458 | -10/Exiles | Met 8R-AWN 466 | -10/Exiles | Met EX-HEX 483 | -10/Exiles | Met EX-BIN 492 | -10/Exiles | Aligned with FarCom system 493 | -10/Exiles | Given EX-Vault access code 506 | -10/Exiles | Opened EX-Vault 520 | -10/Exiles | Warned to stay clear of 0b10 Research branches 537 | -10/Exiles | Met EX-DEC 541 | -10/Exiles | Learned location of Zion (-7) 606 | -10/Exiles | Found Deploy-a-Sentry 607 | -10/Exiles | Found Deploy-a-Sentry 609 | -10/Exiles | Found Deploy-a-Sentry 671 | -10/Exiles | Discovered new exit (range 11) 676 | -10/Exiles | Left Exiles lab with Deploy-a-Sentry 676 | -10/Exiles | Entered Mines 697 | -9/Mines | Met a Derelict bent on vengeance 871 | -9/Mines | Received a Rocket Launcher from a helpful Derelict 1134 | -9/Mines | Learned location of 1 exit from Materials 1154 | -9/Mines | Discovered new exit (range 7) 1173 | -9/Mines | Entered Materials 1173 | -8/Materials | Evolved 4 slots: Power x1, Propulsion x1, Utility x1, Weapon x1 1174 | -8/Materials | Identified exit to Factory 1436 | -8/Materials | Discovered exit to Factory (range 15) 1653 | -8/Materials | Crushed by falling debris 1983 | -8/Materials | Build established: Skirmisher 2038 | -8/Materials | Central database locked down 2305 | -8/Materials | Discovered exit to Factory (range 15) 2307 | -8/Materials | Identified exit to Garrison 2327 | -8/Materials | Entered Garrison 2327 | -8/Garrison | Discovered recently destroyed garrison 2371 | -8/Garrison | Installed Relay Interface Framework 2454 | -8/Garrison | Garrison Relay disabled 2474 | -8/Garrison | Discovered new exit (range 14) 2523 | -8/Garrison | Garrison Relay disabled 2542 | -8/Garrison | Garrison Relay disabled 2668 | -8/Garrison | Garrison Relay disabled 2731 | -8/Garrison | Discovered new exit (range 10) 2763 | -8/Garrison | Build established: Mutant 2924 | -8/Garrison | Discovered new exit (range 10) 3060 | -8/Garrison | Garrison Relay disabled 3285 | -8/Garrison | Build established: Commander-Mutant 3372 | -8/Garrison | Entered Materials 3372 | -8/Materials | Accompanied by 7 allies 3728 | -8/Materials | Discovered exit to Factory (range 4) 3748 | -8/Materials | Build established: Mutant 3842 | -8/Materials | Repaired Rnf. Ion Engine 3887 | -8/Materials | Repaired Imp. Titanium Leg 4030 | -8/Materials | Identified exit to Garrison 4030 | -8/Materials | Entered Garrison 4054 | -8/Garrison | Triggered checkpoint 4252 | -8/Garrison | Triggered checkpoint 4376 | -8/Garrison | Triggered checkpoint 4390 | -8/Garrison | DAS Turret deployed 4416 | -8/Garrison | DAS Turret deployed 4441 | -8/Garrison | Triggered checkpoint 4532 | -8/Garrison | Build established: Skirmisher 4549 | -8/Garrison | Discovered exit to Factory (range 12) 4629 | -8/Garrison | Garrison Relay disabled 4632 | -8/Garrison | Triggered checkpoint 4777 | -8/Garrison | Triggered checkpoint 4809 | -8/Garrison | Triggered checkpoint 4831 | -8/Garrison | Triggered checkpoint 4929 | -8/Garrison | Discovered exit to Factory (range 13) 4962 | -8/Garrison | Triggered checkpoint 5019 | -8/Garrison | Expanded RIF knowledge: Alert ID Control 5041 | -8/Garrison | Garrison Relay disabled 5222 | -8/Garrison | Discovered exit to Factory (range 12) 5280 | -8/Garrison | Lost 3 parts (1u2w) 5506 | -8/Garrison | Entered Factory 5506 | -7/Factory | Accompanied by 3 allies 5506 | -7/Factory | Evolved 2 slots: Utility x2 5749 | -7/Factory | Fabricated M-13 Machinist (x1) 5857 | -7/Factory | Fabricated O-16 Technician (x1) 5910 | -7/Factory | Build established: Hacker-Mutant 6071 | -7/Factory | Discovered new exit (range 15) 6178 | -7/Factory | Repaired Rnf. Ion Engine 6317 | -7/Factory | Repaired Rocket Launcher 6434 | -7/Factory | Found Powered Armor 7029 | -7/Factory | Discovered new exit (range 13) 7126 | -7/Factory | Central database locked down 7358 | -7/Factory | Identified exit to Garrison 7358 | -7/Factory | Entered Garrison 7462 | -7/Garrison | Expanded RIF knowledge: Watcher Feeds 7489 | -7/Garrison | Triggered checkpoint 7611 | -7/Garrison | Garrison Relay disabled 7646 | -7/Garrison | Triggered checkpoint 7704 | -7/Garrison | Destroyed 7 combat bots 7745 | -7/Garrison | Discovered new exit (range 14) 7758 | -7/Garrison | Triggered checkpoint 7902 | -7/Garrison | Garrison Relay disabled 7904 | -7/Garrison | Lost 4 parts (1p2n1w) 8003 | -7/Garrison | Entered Factory 8072 | -7/Factory | Central database locked down 8390 | -7/Factory | Repaired Broken Biometal Leg? 8707 | -7/Factory | Repaired Powered Armor 8839 | -7/Factory | Fabricated P-60 Hacker (x2) 9769 | -7/Factory | Discovered new exit (range 3) 9970 | -7/Factory | Fabricated Biometal Leg (x2) 10107 | -7/Factory | Fabricated A-02 Transporter? 10358 | -7/Factory | Lost 3 parts (1p1u1w) 10640 | -7/Factory | Discovered new exit (range 17) 10751 | -7/Factory | Discovered new exit (range 9) 11020 | -7/Factory | Discovered new exit (range 5) 11247 | -7/Factory | Discovered new exit (range 7) 11252 | -7/Factory | Found Powered Armor 11254 | -7/Factory | Found Powered Armor 11259 | -7/Factory | Found Powered Armor 11261 | -7/Factory | Found Powered Armor 11327 | -7/Factory | Identified exit to Garrison 11663 | -7/Factory | Fabricated A-02 Transporter? 11942 | -7/Factory | Garrison activated, responded to threat 11950 | -7/Factory | Fabricated A-02 Transporter? 12003 | -7/Factory | First assault squad dispatched 12026 | -7/Factory | Entered Garrison 12026 | -7/Garrison | Accompanied by 1 ally 12066 | -7/Garrison | Triggered checkpoint 12119 | -7/Garrison | Garrison Relay disabled 12367 | -7/Garrison | Crushed by falling debris 12367 | -7/Garrison | System corruption reached 10% 12368 | -7/Garrison | Crushed by falling debris 12399 | -7/Garrison | Lost 5 parts (1n2u2w) 12406 | -7/Garrison | Core integrity fell below 50% 12423 | -7/Garrison | Garrison Relay disabled 12429 | -7/Garrison | Garrison Relay disabled 12442 | -7/Garrison | Garrison Relay disabled 12447 | -7/Garrison | Garrison Relay disabled 12620 | -7/Garrison | Triggered checkpoint 12772 | -7/Garrison | Garrison Relay disabled 12773 | -7/Garrison | Build established: Bothacker-Mutant 12800 | -7/Garrison | Discovered new exit (range 11) 12832 | -7/Garrison | Triggered checkpoint 13014 | -7/Garrison | Triggered checkpoint 13040 | -7/Garrison | Triggered checkpoint 13054 | -7/Garrison | Triggered checkpoint 13079 | -7/Garrison | Triggered checkpoint 13118 | -7/Garrison | Garrison Relay disabled 13223 | -7/Garrison | Discovered new exit (range 10) 13248 | -7/Garrison | Triggered checkpoint 13264 | -7/Garrison | Triggered checkpoint 13272 | -7/Garrison | Garrison Relay disabled 13368 | -7/Garrison | Expanded RIF knowledge: Program Shield 13475 | -7/Garrison | Discovered new exit (range 9) 13537 | -7/Garrison | Spotted B-75 Beast 13546 | -7/Garrison | Assimilated Beast 4a with formatsys_high 13876 | -7/Garrison | Entered Factory 13876 | -6/Factory | Accompanied by 7 allies 13876 | -6/Factory | Evolved 2 slots: Utility x2 13983 | -6/Factory | Identified exit to Garrison 14040 | -6/Factory | Fabricated A-02 Transporter? 14106 | -6/Factory | Garrison activated, responded to threat 14115 | -6/Factory | Entered Garrison 14115 | -6/Garrison | Accompanied by 3 allies 14213 | -6/Garrison | Triggered checkpoint 14277 | -6/Garrison | Garrison Relay disabled 14311 | -6/Garrison | Triggered checkpoint 14311 | -6/Garrison | Triggered checkpoint 14422 | -6/Garrison | Triggered checkpoint 14585 | -6/Garrison | Triggered checkpoint 14618 | -6/Garrison | Discovered new exit (range 12) 14727 | -6/Garrison | Triggered checkpoint 14870 | -6/Garrison | Triggered checkpoint 15050 | -6/Garrison | Discovered new exit (range 9) 15182 | -6/Garrison | Triggered checkpoint 15417 | -6/Garrison | Phase Generator disabled 15456 | -6/Garrison | Spotted Executioner 15458 | -6/Garrison | Spotted Executioner 15616 | -6/Garrison | Discovered new exit (range 9) 15642 | -6/Garrison | Triggered checkpoint 15660 | -6/Garrison | Triggered checkpoint 15684 | -6/Garrison | Expanded RIF knowledge: Zone Cloak 15732 | -6/Garrison | Garrison Relay disabled 16331 | -6/Garrison | Entered Factory 16331 | -5/Factory | Accompanied by 1 ally 16331 | -5/Factory | Evolved 2 slots: Utility x2 16338 | -5/Factory | Build established: Botlord-Mutant 16631 | -5/Factory | First assault squad dispatched 16876 | -5/Factory | Lost 12 parts (2p2n6u2w) 16958 | -5/Factory | Core integrity fell below 50% 16978 | -5/Factory | Destroyed 11 combat bots 16988 | -5/Factory | Lost 4 parts (1n1u2w) 17007 | -5/Factory | Core integrity fell below 20% 17062 | -5/Factory | Destroyed by H-71 Marshal with Heavy Mass Driver Last Messages --------------- 16994_ >> Watcher Feeds: Established visual feed link with W-25 Informer. 16994_ K-01 Serf collects debris. 16995_ >> Watcher Feeds: Feed link from W-25 Informer lost. 17006_ Triggered Proton Bomb Trap. 17006_ A bubble of electromagnetic force engulfs the area. 17006_ Proton Bomb Trap short circuited. 17006_ Door malfunctions. 17006_ Proton Bomb Trap short circuited. 17006_ A bubble of electromagnetic force engulfs the area. 17006_ Relay Coupler [Sentry] destroyed. 17009_ System corrupted: Substantial component data lost. 17035_ Triggered Shock Trap. 17035_ The floor emits a surge of raw power. 17035_ System corrupted (+1). 17041_ Detecting nearby Garrison Access. 17044_ K-01 Serf cleans the Garrison Access. 17052_ Triggered Fusion Bomb Trap. 17052_ An explosion rips through the floor. 17058_ ALERT: Suspicious intruders detected, dispatching Cutter reinforcements to area. Map ----- +----------------------------------------------------+ | ?????????????????????????????????????????????????? | | ?????????????????????????????????????????????????? | | ?????????????????????????????????????????????????? | | ?????????????????????????????????????????????????? | | ?????????????????????????????????????????????????? | | ?????????????????????????????????????????????????? | | ?????????????????????????????????????????????????? | | ?????????????????????????????????????????????????? | | ?????????????????????????????????????????????????? | | ?????????????????????????????????????????????????? | | ?????????????????????????????????????????????????? | | ?????????????????????????????????????????????????? | | ?????????????????????????????????????????????????? | | ?????????????????????????????????????????????????? | | ????????????????????####+###?????????????????????? | | ????????????????????# ?????????????????????? | | ?????????????????#+## ??????????????????????? | | ?????????????????? ??????????????????????? | | ??????????????????? * ??????????????????????? | | ???????????????????? ??????????????????????? | | ?????????????????????A H ??????????????????????? | | ?????????????????????? ??????????????????????? | | ??????????????????????# #??????????????????????? | | ??????????????????????# #??????????????????????? | | ??????????????????????# #??????????????????????? | | ??????????????????????# @#######""T""#??????????? | | ??????????????????????# %k ] ???????? | | ??????????????????????# A ???????? | | ??????????????????????#""u """"""" """""?????????? | | ??????????????????????#"" """"""" "?????????????? | | ??????????????????????#"T """"""" ""????????????? | | ??????????????????????#""u """"""" """"??????????? | | ??????????????????????#"" ???????? | | ??????????????????????# ???????? | | ??????????????????????+ ???????? | | ????????????########??# ###############????????? | | ????????????# ??# u#??????????????????????? | | ????????????# ?# #??????????????????????? | | ????????????# ?# #??????????????????????? | | ????????????# ?# #??????????????????????? | | ????????????# ## #??????????????????????? | | ????????????# ##?????????????????????? | | ????????????# ##????????????????????? | | ????????????# #????????????????????? | | ????????????# #????????????????????? | | ????????????# ##????????????????????? | | ????????????# #????????????????????? | | ????????????# #????????????????????? | | ????????????# ##########+???????????? | | ????????????# # ??????????? | +----------------------------------------------------+ Best States ------------- Heat Dissipation 67 Energy Generation 41 Energy Capacity 480 Matter Stores 300 Matter Capacity 300 Sight Range 16 Robot Scan Range 14 Terrain Scan Density 10 Corruption Block 8 Armor Coverage 1200 Evasion (%) 55 Recoil Reduction 2 Offensive Hacking 38 Defensive Hacking 14 Relay Coupler Types 4 Relay Coupler Value 77 Authchip Count 3 Item Schematics ----------------- Hacking Suite | -8/Materials | Hacked System Shield | -8/Materials | Hacked System Restoration Module | -8/Materials | Scanalyzed Lightning Gun | -8/Materials | Scanalyzed Hvy. Armor Plating | -8/Materials | Scanalyzed EM Shotgun | -8/Materials | Extracted Sensor Array | -8/Materials | Extracted Imp. Targeting Computer | -8/Materials | Extracted Imp. Utility Shielding | -8/Materials | Extracted Com. Battery | -8/Materials | Extracted Adv. Assault Cannon | -7/Factory | Hacked Carbide Saw | -7/Factory | Hacked Antigrav System | -7/Factory | Scanalyzed Adv. System Restoration Module | -7/Factory | Scanalyzed Powered Armor | -7/Factory | Scanalyzed Biometal Leg | -7/Factory | Scanalyzed Imp. Cooling System | -7/Factory | Scanalyzed Mic. Fission Core | -7/Factory | Scanalyzed Imp. Datajack | -7/Factory | Scanalyzed Mass Driver | -7/Factory | Hacked EM Disruption Field | -7/Factory | Hacked Imp. Trap Scanner | -7/Factory | Hacked Power Maul | -7/Factory | Extracted Hvy. Missile Launcher | -7/Factory | Extracted Microactuators | -7/Factory | Extracted Hyb. Fission Core | -7/Factory | Hacked Adv. Field Recycling Unit | -7/Factory | Hacked Greatsword | -7/Factory | Hacked Imp. Medium Treads | -7/Factory | Hacked Plasma Rifle | -7/Factory | Hacked Robot Schematics ------------------ M-13 Machinist | -10/Materials | Hacked O-16 Technician | -10/Materials | Hacked A-02 Transporter | -7/Factory | Hacked P-60 Hacker | -7/Factory | Hacked O-24 Administrator | -7/Factory | Hacked Fabricated ------------ M-13 Machinist | x1 | -7/Factory | Authchip O-16 Technician | x1 | -7/Factory | Authchip P-60 Hacker | x2 | -7/Factory | Authchip Biometal Leg | x2 | -7/Factory A-02 Transporter | x1 | -7/Factory A-02 Transporter | x1 | -7/Factory A-02 Transporter | x1 | -7/Factory A-02 Transporter | x1 | -6/Factory | Authchip Alien Tech Used ----------------- None Achievements -------------- None Challenges ------------ None Game ------ Seed SeismicPoweredReconfigurator Manual? 0 Play Time 03:31:22 Cumulative 287.6 hours Start 2023.09.12 @ 15:37:43 End 2023.09.12 @ 19:21:41 Sessions 1 Manual Loads 0 Difficulty Rogue Special Mode None Game No. 194 Rogue 191 Adventurer 3 Explorer 0 Win Type - Total 5 Types 4/0/1/0/0/0/0/0/0 Lore% 71 Gallery% 75 Achievement% 64 Wizard Run 0 Options --------- ASCII 0 Keyboard 0 Movement Numpad Keybinds 0 Fullscreen 1 Font 18/SmallcapsGlow Map View 76x50 Tactical HUD 1 Map Filters NONE Filters NONE Steam 1 RUN: 64d9dbdb-6742-48ae-9a67-889988e2a001